bitfinex-derivatives/quotes_ETHF0:USTF0_20250702
["timestamp","ask_amount","ask_price","bid_price","bid_amount"]
[1751469806113,14.91354,2495.0,2494.9,0.00601576]
[1751469806310,14.91354,2495.0,2494.9,0.80728576]
[1751469806714,14.91354,2495.0,2494.9,0.00601576]
[1751469808113,19.91354,2495.0,2494.9,0.00601576]
[1751469808318,20.03378289,2495.0,2494.9,0.00601576]
[1751469809524,53.66378289,2495.0,2494.9,0.00601576]
[1751469809724,53.95385711,2495.0,2494.9,5.76e-06]
[1751469809919,0.80146,2494.3,2494.2,1.4055]
[1751469810224,0.80169,2493.6,2493.5,5.39281639]
[1751469810425,0.80175,2493.5,2493.2,44.59622]
[1751469810625,0.80175,2493.5,2493.2,45.98962]
[1751469810824,0.80175,2493.5,2493.3,1.3934]
[1751469811222,33.62401576,2493.6,2493.5,0.80172]
[1751469811924,0.00601576,2493.6,2493.5,5.80172]
[1751469812127,33.61501576,2493.6,2493.5,9.4012006]
[1751469812426,0.00601576,2493.6,2493.5,0.80172]
[1751469812626,0.00601576,2493.6,2493.5,4.4012006]
[1751469813121,0.00601576,2493.6,2493.5,9.4012006]
[1751469813325,3.5994806,2494.3,2493.5,9.4012006]
[1751469813326,33.599,2493.8,2493.7,0.80166]
[1751469813927,33.599,2493.8,2493.7,2.22006]
[1751469814723,0.80154,2494.1,2493.7,2.22006]
[1751469814925,57.694,2494.4,2494.3,0.80146]
[1751469815431,12.514,2494.4,2494.3,0.80146]
[1751469816325,12.514,2494.4,2494.3,2.19546]
[1751469817726,1.4611,2495.1,2494.3,2.19546]
[1751469817727,58.51019,2495.2,2495.1,0.80121]
[1751469817930,105.78658888,2495.2,2495.1,0.80121]
[1751469818129,70.223,2495.2,2495.1,0.80121]
[1751469818332,104.98322951,2495.2,2495.1,0.80121]
[1751469818630,71.41822951,2495.2,2495.1,0.80121]
[1751469818831,104.5892,2495.2,2494.8,2.00323]
[1751469819028,104.5892,2495.2,2495.1,0.80121]
[1751469819229,103.788,2495.2,2495.1,0.80121]
[1751469819531,104.58918,2495.2,2495.1,0.80121]
[1751469819726,103.788,2495.2,2495.1,0.80121]
[1751469820724,103.779,2495.2,2495.1,0.80121]
[1751469822428,57.709,2495.2,2495.1,0.80121]
[1751469822634,9.78706156,2495.8,2495.6,0.80103]
[1751469822933,47.23704123,2495.7,2495.6,0.80103]
[1751469823134,13.70704123,2495.7,2495.6,0.80103]
[1751469823333,47.23604123,2495.7,2495.6,0.80103]
[1751469823633,0.80105,2495.6,2495.5,0.80106]
[1751469824628,46.84304,2495.7,2495.6,0.80105]
[1751469825034,46.83104,2495.7,2495.6,0.80105]
[1751469825232,46.03,2495.7,2495.2,2.9781]
[1751469825428,0.8011,2495.5,2495.4,0.8011]
[1751469825732,33.507,2495.5,2495.4,0.8011]
[1751469825932,34.30808,2495.5,2495.4,0.8011]
[1751469826533,33.507,2495.5,2495.4,0.8011]
[1751469827130,0.80104,2495.7,2495.6,0.80105]
[1751469827331,0.80106,2495.6,2495.5,0.80105]
[1751469828529,46.004,2495.7,2495.2,43.7781]
[1751469828729,0.80109,2495.5,2495.4,0.80109]
[1751469828926,41.20105156,2495.5,2495.4,0.80109]
[1751469829334,40.39996156,2495.5,2495.4,0.80109]
[1751469829533,41.20104156,2495.5,2495.4,0.80109]
[1751469829931,40.39996156,2495.5,2495.4,0.80109]
[1751469830136,41.20104156,2495.5,2495.4,0.80109]
[1751469830337,40.39996156,2495.5,2495.4,0.80111]
[1751469830538,33.489,2495.5,2495.4,0.80111]
[1751469830935,13.31303,2495.7,2495.3,2.00283]
[1751469831136,33.466,2495.5,2495.4,0.80111]
[1751469831833,0.80102,2495.7,2495.6,0.80105]
[1751469832036,45.965,2495.7,2495.6,0.80105]
[1751469832338,46.76601,2495.7,2495.6,0.80105]
[1751469832735,0.80106,2495.6,2495.5,0.80105]
[1751469832935,45.965,2495.7,2495.6,0.80105]
[1751469833239,0.80106,2495.6,2495.5,0.80106]
[1751469833438,33.442,2495.6,2495.5,0.80106]
[1751469833639,34.24305,2495.6,2495.5,0.80106]
[1751469833837,34.24307,2495.6,2495.5,0.80108]
[1751469834141,0.80109,2495.5,2495.4,0.80109]
[1751469834435,34.24306,2495.6,2495.5,0.80108]
[1751469835040,33.442,2495.6,2495.5,0.80108]
[1751469835642,34.24305,2495.6,2495.5,0.80108]
[1751469835938,33.442,2495.6,2495.4,0.80109]
[1751469836137,34.24308,2495.6,2495.5,0.80108]
[1751469836438,0.8011,2495.5,2495.4,0.80109]
[1751469836637,0.8011,2495.5,2495.0,2.00304]
[1751469836638,6.91096156,2495.5,2495.0,2.00304]
[1751469836844,34.21613,2495.4,2495.3,0.80112]
[1751469837343,33.415,2495.4,2495.3,0.80112]
[1751469837644,34.21611,2495.4,2495.3,0.80112]
[1751469839242,33.415,2495.4,2495.3,0.80112]
[1751469839538,34.21611,2495.4,2495.3,0.80112]
[1751469839742,33.415,2495.4,2495.3,0.80112]
[1751469840245,34.21611,2495.4,2495.3,0.80112]
[1751469840546,33.415,2495.4,2495.3,0.80112]
[1751469840847,34.21611,2495.4,2495.3,0.80112]
[1751469841040,33.415,2495.4,2495.3,0.80112]
[1751469841542,14.76591,2495.7,2495.6,0.80105]
[1751469841746,48.14391,2495.7,2495.6,0.80105]
[1751469842047,51.73913171,2495.7,2495.6,0.80105]
[1751469842348,16.90723171,2495.7,2495.6,0.80105]
[1751469842644,12.511,2495.7,2495.6,0.80105]
[1751469842845,45.882,2495.7,2495.6,0.80105]
[1751469843145,49.47722171,2495.7,2495.6,0.80105]
[1751469843544,0.80106,2495.6,2495.5,0.80106]
[1751469843736,0.80108,2495.5,2495.4,0.80109]
[1751469843937,37.75830171,2495.5,2495.4,0.80109]
[1751469844139,38.37422171,2495.5,2495.4,0.80109]
[1751469845048,36.95722171,2495.5,2495.4,0.80109]
[1751469845246,33.362,2495.5,2495.4,0.80109]
[1751469845450,3.59522171,2495.7,2495.6,0.80105]
[1751469845637,12.421,2495.7,2495.6,0.80105]
[1751469845843,0.00601576,2495.9,2495.8,0.80098]
[1751469846043,33.35001576,2495.9,2495.8,0.80098]
[1751469846648,37.74618747,2495.9,2495.8,0.80098]
[1751469847145,36.94523747,2495.9,2495.2,3.42443]
[1751469847442,3.59522171,2495.7,2495.4,0.80111]
[1751469847647,33.334,2495.6,2495.5,0.80108]
[1751469848047,34.13505,2495.6,2495.5,0.80108]
[1751469848450,33.334,2495.6,2495.5,0.80108]
[1751469849151,0.80111,2495.4,2495.3,1.3713]
[1751469849342,33.33,2495.4,2495.3,2.17244]
[1751469850049,2.9878,2495.8,2495.6,0.80104]
[1751469850252,45.737,2495.7,2495.6,0.80104]
[1751469850445,0.80101,2495.7,2495.6,0.80104]
[1751469850646,45.728,2495.7,2495.6,0.80104]
[1751469850846,45.728,2495.7,2495.5,0.80106]
[1751469851047,0.80107,2495.6,2495.5,0.80106]
[1751469851340,8.90544846,2495.6,2495.2,1.4505]
[1751469851651,0.80132,2494.8,2494.4,2.00357]
[1751469851852,0.80132,2494.8,2494.6,0.80137]
[1751469851853,33.302,2494.7,2494.6,0.80137]
[1751469852047,33.302,2494.7,2494.5,2.9571]
[1751469852250,0.8014,2494.6,2494.4,0.80142]
[1751469852549,33.296,2494.5,2494.4,0.80142]
[1751469853341,33.296,2494.5,2494.4,0.80143]
[1751469854049,57.685,2495.1,2494.4,5.0]
[1751469854249,33.295,2495.0,2494.9,0.80124]
[1751469854450,34.09624,2495.0,2494.7,1.439]
[1751469854650,33.295,2495.0,2494.9,0.80127]
[1751469854850,57.685,2495.1,2495.0,0.80124]
[1751469855053,91.76821,2495.1,2495.0,0.80124]
[1751469855343,90.967,2495.1,2495.0,0.80124]
[1751469856144,12.422,2495.3,2494.8,3.39155]
[1751469856145,13.22317,2495.3,2495.2,0.80118]
[1751469856346,0.80118,2495.2,2495.1,0.80119]
[1751469856551,0.80122,2495.1,2495.0,0.80123]
[1751469856750,2.00212094,2495.1,2495.0,0.80123]
[1751469857153,0.8012,2495.2,2495.1,0.80121]
[1751469857452,2.00207659,2495.2,2495.1,0.80121]
[1751469858053,2.00207659,2495.2,2494.8,1.3883]
[1751469858253,1.20087659,2495.1,2494.8,3.39155]
[1751469858456,0.80118,2495.2,2495.1,0.80119]
[1751469858755,0.80121,2495.1,2494.8,1.3883]
[1751469858947,6.90280846,2495.0,2494.7,2.8895]
[1751469859149,0.8013,2494.8,2494.7,1.4505]
[1751469859453,0.8014,2494.5,2494.4,1.4948]
[1751469859653,34.0504,2494.5,2494.4,1.4948]
[1751469859849,33.249,2494.5,2494.4,2.29623]
[1751469860653,34.0504,2494.5,2494.4,2.29623]
[1751469860853,33.249,2494.5,2494.4,2.29623]
[1751469861058,34.0504,2494.5,2494.4,2.29623]
[1751469861349,34.0504,2494.5,2494.2,2.7725]
[1751469861350,0.80146,2494.3,2494.2,1.3997]
[1751469861750,6.90280846,2494.4,2493.9,1.4948]
[1751469861957,0.80151,2494.2,2494.1,0.80152]
[1751469862254,33.231,2494.2,2492.9,17.81481639]
[1751469862454,8.90677846,2494.0,2493.2,1.5101]
[1751469862758,6.90280846,2493.7,2493.3,40.8]
[1751469862956,34.03171,2493.6,2493.4,0.80175]
[1751469863851,33.23,2493.6,2493.3,40.8]
[1751469864055,33.23,2493.6,2493.5,0.80172]
[1751469864964,0.00601576,2493.8,2493.7,0.80166]
[1751469865264,33.212,2493.9,2493.8,0.80162]
[1751469865454,33.212,2493.9,2493.8,3.58842]
[1751469865655,33.212,2493.9,2493.8,5.10482]
[1751469865850,1.3716,2494.6,2493.9,2.00398]
[1751469866054,45.636,2494.5,2494.4,0.80141]
[1751469866254,1.4436,2494.8,2494.2,2.00375]
[1751469866448,12.425,2494.8,2494.3,2.00367]
[1751469866648,33.208,2494.7,2494.6,0.80137]
[1751469867055,58.49429,2494.9,2494.7,0.80132]
[1751469867257,58.49429,2494.9,2494.4,4.3032]
[1751469867258,33.204,2494.8,2494.4,4.3032]
[1751469867560,0.80135,2494.7,2494.6,0.80137]
[1751469867763,34.00433,2494.8,2494.6,0.80137]
[1751469867956,34.00433,2494.8,2494.6,0.80135]
[1751469868455,34.00433,2494.8,2494.4,4.3032]
[1751469868456,33.203,2494.8,2494.7,0.80134]
[1751469868754,0.80126,2495.0,2494.8,0.80128]
[1751469868958,6.90280846,2495.3,2494.6,2.00336]
[1751469869159,0.80124,2495.1,2494.9,0.80127]
[1751469869361,0.80124,2495.0,2494.8,0.80128]
[1751469869561,0.80122,2495.1,2494.9,0.80125]
[1751469869758,0.80126,2495.0,2494.8,0.80730576]
[1751469869957,33.186,2494.9,2494.8,0.80731576]
[1751469870357,0.80123,2495.1,2494.9,0.80126]
[1751469870554,33.179,2495.0,2494.9,0.80126]
[1751469870763,1.3721,2495.2,2495.0,0.80121]
[1751469870962,45.604,2495.1,2495.0,0.80121]
[1751469871263,0.80124,2495.0,2494.8,0.80729576]
[1751469871464,7.70407846,2494.9,2494.8,0.00601576]
[1751469875468,7.70407846,2494.9,2494.8,0.80731576]
[1751469875866,7.70407846,2494.9,2494.8,0.00601576]
[1751469878066,0.80127,2494.9,2494.8,0.00601576]
[1751469878466,46.26627,2494.9,2494.8,0.00601576]
[1751469878668,46.26327,2494.9,2494.8,0.00601576]
[1751469878868,46.26227,2494.9,2494.8,0.00601576]
[1751469879067,0.80127,2494.9,2494.8,0.00601576]
[1751469879366,46.25827,2494.9,2494.8,0.00601576]
[1751469880172,46.25827,2494.9,2493.9,3.39103]
[1751469880173,2.00335,2494.7,2493.9,1.3871]
[1751469880374,8.90659846,2494.2,2493.5,4.87279]
[1751469880575,0.80159,2493.9,2493.7,41.60163]
[1751469880872,33.109,2493.8,2493.7,41.60164]
[1751469881167,33.104,2493.8,2493.7,41.60166]
[1751469881367,33.104,2493.8,2493.7,0.80166]
[1751469882572,33.104,2493.8,2493.5,43.5928]
[1751469882573,33.90564,2493.8,2493.6,0.80167]
[1751469882769,33.104,2493.8,2493.7,0.80166]
[1751469884172,12.343,2494.0,2493.9,0.80159]
[1751469884378,0.80155,2494.1,2494.0,0.80156]
[1751469884676,33.084,2494.1,2494.0,0.80154]
[1751469885575,12.343,2494.3,2494.2,0.8015]
[1751469885778,45.42,2494.3,2494.2,0.8015]
[1751469886376,13.14446,2494.3,2494.2,0.8015]
[1751469886577,13.14446,2494.3,2494.1,2.9202]
[1751469886578,0.8015,2494.2,2494.1,3.72171]
[1751469886878,46.22049,2494.3,2494.2,0.8015]
[1751469887180,0.8015,2494.2,2494.1,3.72171]
[1751469887480,46.22048,2494.3,2494.2,0.8015]
[1751469888173,45.419,2494.3,2494.2,0.8015]
[1751469888976,46.22046,2494.3,2494.2,0.8015]
[1751469890180,46.22046,2494.3,2494.1,2.9202]
[1751469890181,0.8015,2494.2,2494.1,3.72171]
[1751469890581,46.22047,2494.3,2494.2,0.8015]
[1751469890778,45.419,2494.3,2494.2,0.8015]
[1751469890980,0.8015,2494.2,2494.1,2.9202]
[1751469891681,46.22048,2494.3,2494.2,0.8015]
[1751469891882,45.419,2494.3,2494.2,0.8015]
[1751469892080,0.8015,2494.2,2494.1,3.72171]
[1751469892276,46.22049,2494.3,2494.2,0.8015]
[1751469892682,46.17649,2494.3,2494.2,0.8015]
[1751469893177,0.00601576,2494.5,2494.4,0.80143]
[1751469893480,33.03301576,2494.5,2494.4,0.80143]
[1751469895379,0.00601576,2494.5,2494.4,0.80143]
[1751469895583,33.02701576,2494.5,2494.4,0.80143]
[1751469896480,33.82841576,2494.5,2494.4,0.80143]
[1751469896682,33.02701576,2494.5,2494.4,0.80143]
[1751469897177,0.00601576,2494.5,2494.4,0.80143]
[1751469897383,33.01901576,2494.5,2494.4,0.80143]
[1751469897584,33.82041576,2494.5,2494.4,0.80143]
[1751469898279,33.01901576,2494.5,2494.4,0.80143]
[1751469899185,0.00601576,2494.5,2494.4,0.80143]
[1751469899381,33.00101576,2494.5,2494.4,0.80143]
[1751469899579,32.99201576,2494.5,2494.4,0.80143]
[1751469900479,32.99201576,2494.5,2494.2,3.486]
[1751469900480,0.80146,2494.4,2494.3,0.80143]
[1751469900675,0.00601576,2494.5,2494.4,0.80143]
[1751469900880,32.99001576,2494.5,2494.4,0.80143]
[1751469901084,32.98001576,2494.5,2494.4,0.80143]
[1751469902388,32.97101576,2494.5,2494.4,0.80143]
[1751469902583,32.97001576,2494.5,2494.4,0.80143]
[1751469902977,32.97001576,2494.5,2494.3,0.80143]
[1751469903182,32.97001576,2494.5,2494.2,0.80148]
[1751469903382,0.80145,2494.4,2494.3,0.80143]
[1751469903686,0.80745576,2494.5,2494.4,0.80143]
[1751469903881,32.96501576,2494.5,2494.4,0.80143]
[1751469904387,32.96101576,2494.5,2494.4,0.80143]
[1751469905982,32.95801576,2494.5,2494.4,0.80143]
[1751469906884,33.75941576,2494.5,2494.4,0.80143]
[1751469907887,32.95801576,2494.5,2494.4,0.80143]
[1751469908092,33.75941576,2494.5,2494.4,0.80143]
[1751469908888,32.95801576,2494.5,2494.4,0.80143]
[1751469909188,32.93801576,2494.5,2494.4,0.80143]
[1751469910089,33.73941576,2494.5,2494.4,0.80143]
[1751469910489,0.80741576,2494.5,2494.4,0.80143]
[1751469910683,33.72141576,2494.5,2494.4,0.80143]
[1751469911383,0.00601576,2494.5,2494.4,0.80143]
[1751469911892,32.91101576,2494.5,2494.4,0.80143]
[1751469912592,0.00601576,2494.5,2494.4,0.80143]
[1751469912787,33.71041576,2494.5,2494.4,0.80143]
[1751469912982,0.00601576,2494.5,2494.4,0.80143]
[1751469913187,32.90201576,2494.5,2494.4,0.80143]
[1751469913890,32.90001576,2494.5,2494.4,0.80143]
[1751469914494,33.70141576,2494.5,2494.4,0.80143]
[1751469914690,32.90001576,2494.5,2494.4,0.80143]
[1751469915488,0.00601576,2494.5,2494.4,5.80143]
[1751469916295,3.69743,2495.1,2495.0,0.80121]
[1751469916296,13.06523,2495.1,2495.0,0.80121]
[1751469916594,14.516,2495.2,2495.1,0.80121]
[1751469916985,47.385,2495.2,2495.1,0.80121]
[1751469917187,0.80127,2495.0,2494.9,0.80124]
[1751469917386,0.80131,2494.9,2494.8,0.80128]
[1751469917691,35.15741,2494.9,2494.8,41.60128]
[1751469918086,35.15741,2494.9,2494.8,0.80128]
[1751469918292,34.3561,2494.9,2494.8,0.80128]
[1751469919199,0.80131,2494.8,2494.7,0.80131]
[1751469919400,35.15739,2494.9,2494.8,0.8013]
[1751469919697,34.3561,2494.9,2494.8,0.8013]
[1751469919898,34.3401,2494.9,2494.8,0.8013]
[1751469921401,32.85,2494.9,2494.8,0.8013]
[1751469921599,33.65127,2494.9,2494.8,0.8013]
[1751469921801,0.80131,2494.8,2494.7,0.80131]
[1751469922099,35.1339,2494.9,2494.8,0.8013]
[1751469923196,2.2839,2494.9,2494.8,0.8013]
[1751469923403,0.80131,2494.8,2494.7,0.80131]
[1751469923599,0.80131,2494.8,2494.7,0.80132]
[1751469923998,1.4826,2494.9,2494.8,0.8013]
[1751469924300,45.88827,2494.9,2494.8,0.8013]
[1751469924902,0.80137,2494.6,2494.5,1.5157]
[1751469925100,0.80137,2494.6,2494.1,0.80151]
[1751469925101,0.80146,2494.3,2494.1,0.80151]
[1751469925299,40.51826846,2494.3,2494.0,0.80154]
[1751469925600,40.51826846,2494.3,2493.6,3.88782634]
[1751469925601,2.00393,2494.0,2493.5,3.88782634]
[1751469925801,6.90280846,2493.6,2493.2,3.88782634]
[1751469926000,32.81,2493.5,2493.4,0.80175]
[1751469926301,32.3290621,2493.5,2493.4,0.80175]
[1751469926701,0.80167,2493.7,2493.5,0.80171]
[1751469926904,45.86769,2493.6,2493.5,0.80171]
[1751469927098,45.066,2493.6,2493.5,0.80171]
[1751469927302,12.263,2493.6,2493.2,40.8]
[1751469927502,0.80157,2494.0,2493.8,0.80162]
[1751469927701,12.263,2494.1,2493.3,8.90727846]
[1751469927702,32.799,2493.9,2493.3,8.90727846]
[1751469927898,2.8669,2494.3,2493.6,2.00421]
[1751469928103,0.80153,2494.1,2494.0,0.80155]
[1751469928408,0.80153,2494.1,2493.7,0.80164]
[1751469928409,0.8016,2493.9,2493.7,0.80164]
[1751469928702,32.794,2493.8,2493.7,0.80164]
[1751469928908,32.794,2493.8,2493.2,42.80449]
[1751469928909,39.69680846,2493.8,2493.2,40.8]
[1751469929101,6.90280846,2493.4,2493.3,0.80179]
[1751469929305,32.794,2493.4,2493.3,0.80179]
[1751469929704,0.80183,2493.2,2492.6,2.00496]
[1751469929901,33.59285,2493.1,2492.9,0.80189]
[1751469930099,33.59285,2493.1,2492.8,41.60192]
[1751469930300,33.59285,2493.1,2492.9,0.80191]
[1751469930505,0.80188,2493.0,2492.8,40.8]
[1751469930713,34.2856,2493.1,2492.8,40.8]
[1751469930911,0.80189,2493.0,2492.8,41.60193]
[1751469931413,0.80189,2493.0,2492.8,41.60192]
[1751469931605,0.80196,2492.8,2492.6,0.80199]
[1751469931802,32.784,2492.7,2492.6,0.80199]
[1751469932002,32.784,2492.7,2492.6,0.80201]
[1751469932406,32.784,2492.7,2492.3,2.9115]
[1751469932407,0.80202,2492.6,2492.3,2.9115]
[1751469932610,0.80216,2492.2,2492.0,0.80219]
[1751469932806,32.78,2492.1,2492.0,41.60219]
[1751469933312,32.777,2492.2,2492.0,40.8]
[1751469933513,32.777,2492.2,2492.1,0.80217]
[1751469933702,32.773,2492.5,2492.1,1.4891]
[1751469933904,32.773,2492.5,2492.4,0.80207]
[1751469934206,12.267,2492.8,2492.7,0.80198]
[1751469934408,9.21224846,2492.9,2492.8,0.80195]
[1751469934609,0.80195,2492.8,2492.7,0.80196]
[1751469934808,53.44830846,2492.9,2492.7,0.80196]
[1751469934809,54.25022846,2492.9,2492.7,0.80196]
[1751469935007,53.44830846,2492.9,2492.3,2.9599]
[1751469935311,46.61744901,2492.8,2491.1,6.90280846]
[1751469935508,46.61744901,2492.8,2490.6,3.88782634]
[1751469935509,6.90280846,2492.5,2491.4,6.90280846]
[1751469935710,2.25919,2492.4,2491.9,0.80224]
[1751469935908,2.25919,2492.4,2491.6,0.80231]
[1751469935909,0.80225,2491.9,2491.6,0.80231]
[1751469936104,32.767,2492.0,2491.8,0.80226]
[1751469936310,32.767,2492.0,2491.6,0.80231]
[1751469936513,33.56923,2492.0,2491.7,0.8023]
[1751469937208,33.56923,2492.0,2491.5,39.3]
[1751469937512,1.4571,2492.2,2491.5,39.3]
[1751469937708,1.4571,2492.2,2491.7,0.80227]
[1751469937709,0.80222,2492.0,2491.7,0.80227]
[1751469938015,0.80222,2492.0,2491.8,0.80226]
[1751469938513,32.764,2492.1,2491.8,0.80226]
[1751469938712,32.764,2492.1,2491.5,39.3]
[1751469938713,33.56618,2492.1,2491.9,0.80223]
[1751469938909,33.56618,2492.1,2491.8,0.80224]
[1751469939213,0.8022,2492.0,2491.8,0.80224]
[1751469939414,0.80224,2491.9,2491.7,0.80228]
[1751469939614,0.80224,2491.9,2491.6,0.8023]
[1751469939909,1.4901,2491.8,2490.7,2.31030158]
[1751469940110,0.8024,2491.4,2491.2,0.80245]
[1751469940313,6.90280846,2491.6,2491.2,40.10246]
[1751469940506,32.753,2491.5,2491.4,0.80237]
[1751469940706,1.3853,2491.7,2491.6,0.80233]
[1751469940906,32.76101576,2491.7,2491.6,0.80232]
[1751469941114,33.56331576,2491.7,2491.5,0.80235]
[1751469941315,32.76101576,2491.7,2491.5,0.80235]
[1751469941513,33.56333576,2491.7,2491.6,0.80233]
[1751469941715,32.76101576,2491.7,2491.6,0.80233]
[1751469942617,32.75801576,2491.7,2491.3,0.8024]
[1751469942813,0.80243,2491.3,2491.2,1.4474]
[1751469943511,33.54643,2491.3,2491.2,1.4474]
[1751469943707,2.00616,2491.2,2490.2,2.00695]
[1751469943919,6.90280846,2491.1,2490.8,0.80258]
[1751469944209,32.746,2491.0,2490.8,0.80258]
[1751469944406,0.80259,2490.8,2490.7,0.00601576]
[1751469944611,7.70539846,2490.8,2490.7,0.00601576]
[1751469945317,7.70539846,2490.8,2490.7,0.80863576]
[1751469945713,7.70539846,2490.8,2490.7,0.00601576]
[1751469945914,9.16559846,2490.8,2490.7,0.00601576]
[1751469946114,0.80272,2490.4,2490.3,0.80273]
[1751469946313,0.80272,2490.4,2489.8,2.8939]
[1751469946314,1.4602,2490.8,2489.8,6.90280846]
[1751469946614,32.736,2490.7,2490.6,0.80263]
[1751469946809,0.80263,2490.7,2490.2,1.4569]
[1751469947010,1.4602,2491.2,2490.5,2.00672]
[1751469947217,2.9231,2491.1,2490.8,0.80259]
[1751469947414,35.00074,2491.0,2490.9,0.80255]
[1751469947622,34.1982,2491.0,2490.1,2.00697]
[1751469947813,6.90280846,2490.7,2490.6,0.80265]
[1751469948315,0.80257,2490.9,2490.8,0.80259]
[1751469948614,33.53754,2491.0,2490.8,0.80257]
[1751469948920,0.80263,2490.7,2490.0,2.00708]
[1751469949114,6.90280846,2490.9,2490.1,2.00701]
[1751469949310,6.90280846,2490.6,2490.0,2.00706]
[1751469949516,32.731,2490.5,2490.0,2.9405]
[1751469949710,0.80274,2490.4,2489.9,39.3]
[1751469949915,35.6242,2490.5,2489.9,39.3]
[1751469949916,8.31730846,2490.3,2489.9,39.3]
[1751469950112,0.8028,2490.2,2490.1,0.80281]
[1751469950315,0.80283,2490.1,2489.6,2.00745]
[1751469950512,9.12015846,2490.0,2489.9,0.80288]
[1751469950719,8.31730846,2490.0,2489.9,0.80288]
[1751469950915,2.21736,2490.0,2489.9,0.80288]
[1751469951121,34.1445,2490.0,2489.9,0.80288]
[1751469951316,34.1445,2490.0,2489.8,0.80289]
[1751469951317,32.73,2490.0,2489.8,0.80289]
[1751469951511,2.2174,2489.9,2489.8,0.80291]
[1751469951718,6.90280846,2490.1,2490.0,0.80285]
[1751469952022,0.80286,2490.0,2489.3,41.30764]
[1751469952222,7.70569846,2489.9,2489.4,2.9024]
[1751469952418,6.90280846,2489.6,2488.9,2.00796]
[1751469952719,9.18573846,2489.8,2489.0,3.51283]
[1751469952916,6.90280846,2489.7,2489.2,2.00777]
[1751469953223,9.15277846,2489.7,2489.2,2.00777]
[1751469953524,6.90280846,2489.4,2488.8,2.00803]
[1751469953818,6.90280846,2489.4,2489.3,0.80307]
[1751469954120,8.32880846,2489.6,2489.5,0.80301]
[1751469954420,6.90280846,2489.9,2489.2,2.00777]
[1751469954722,40.43568846,2489.9,2489.3,3.44719]
[1751469954918,15.88163,2490.1,2489.5,2.00753]
[1751469955111,35.5978,2490.1,2490.0,0.80285]
[1751469955517,0.00601576,2490.3,2489.6,2.93]
[1751469955719,0.00601576,2490.3,2490.2,0.80278]
[1751469956222,0.00601576,2490.3,2490.2,5.80278]
[1751469958919,15.0529,2491.1,2491.0,0.80253]
[1751469959123,66.14060846,2491.5,2491.0,0.80253]
[1751469959326,66.14060846,2491.5,2491.3,0.80242]
[1751469959327,0.80241,2491.4,2491.3,0.80242]
[1751469959621,0.80244,2491.3,2491.2,0.80245]
[1751469960222,2.21672,2491.4,2491.2,0.80245]
[1751469960723,0.80248,2491.2,2491.1,0.80248]
[1751469961123,1.4295,2491.2,2490.6,2.00661]
[1751469961324,2.23198,2491.2,2491.1,0.80249]
[1751469961521,1.4295,2491.2,2491.1,0.80249]
[1751469961920,2.23196,2491.2,2491.1,0.80249]
[1751469963220,1.4295,2491.2,2491.1,0.80249]
[1751469964020,1.4125266,2491.2,2491.1,0.80249]
[1751469964619,98.21722422,2491.5,2491.4,0.8024]
[1751469964922,0.80242,2491.4,2491.3,0.80241]
[1751469965322,65.50521422,2491.5,2491.4,0.8024]
[1751469965521,98.21421422,2491.5,2491.4,0.8024]
[1751469965722,0.80241,2491.4,2491.3,0.80241]
[1751469965922,98.21420422,2491.5,2491.4,0.8024]
[1751469966122,65.50520422,2491.5,2491.4,0.8024]
[1751469966327,98.21320422,2491.5,2491.4,0.8024]
[1751469966530,0.80241,2491.4,2491.3,0.80241]
[1751469966826,0.80244,2491.3,2491.2,0.80244]
[1751469967026,0.80242,2491.4,2491.3,0.80242]
[1751469967226,2.31352,2491.4,2491.3,0.80242]
[1751469967628,1.5111,2491.4,2491.3,0.80242]
[1751469967827,2.3135,2491.4,2491.3,0.80242]
[1751469968932,35.0155,2491.4,2491.3,0.80242]
[1751469969529,0.80246,2491.2,2490.8,2.00648]
[1751469969826,0.80246,2491.2,2491.1,0.80248]
[1751469970028,0.80249,2491.1,2491.0,0.8025]
[1751469970328,0.00601576,2491.5,2491.4,0.8024]
[1751469971131,0.80242,2491.4,2491.3,0.8024]
[1751469971325,0.80245,2491.3,2491.2,0.80244]
[1751469971520,6.90280846,2491.4,2491.1,0.80247]
[1751469971521,0.80249,2491.2,2491.1,0.80247]
[1751469971932,0.80252,2491.1,2491.0,0.8025]
[1751469972134,7.70532846,2491.1,2491.0,0.8025]
[1751469972531,9.20259846,2491.1,2491.0,0.8025]
[1751469972829,8.40010846,2491.1,2491.0,0.8025]
[1751469973935,32.693,2491.2,2491.1,0.80249]
[1751469974830,33.49546,2491.2,2491.1,0.80249]
[1751469975534,0.80253,2491.1,2491.0,0.80253]
[1751469975836,8.90904846,2491.1,2490.3,2.00683]
[1751469976037,8.90904846,2491.1,2490.8,0.80258]
[1751469976038,0.8026,2490.9,2490.8,0.80258]
[1751469976335,33.4856,2490.9,2490.8,0.80258]
[1751469976536,34.9101,2490.9,2490.8,0.80258]
[1751469976732,34.1075,2490.9,2490.4,4.8727]
[1751469976935,0.80262,2490.8,2490.7,0.80261]
[1751469977328,2.22712,2490.8,2490.7,0.80261]
[1751469977534,0.80267,2490.6,2490.5,0.80266]
[1751469978239,2.22717,2490.6,2490.5,0.80266]
[1751469979038,2.22717,2490.6,2490.3,40.10273]
[1751469979039,0.80272,2490.4,2490.3,40.10273]
[1751469979244,32.676,2490.4,2489.9,2.00721]
[1751469979440,1.3959,2490.3,2490.2,0.80276]
[1751469980339,32.675,2490.5,2490.3,2.00686]
[1751469980540,40.38049846,2490.5,2490.4,0.80272]